Workbook

Sheet Лист1
A1: 1 | B1: 2 | C1: 3 | E1: 4 | G1: 5 | H1: 6 | I1: 7 | K1: 8 | M1: 9 | O1: 10 | P1: 11 | Q1: 12
A2: № | C2: Якіс. Пок. | E2: Сер. Бал | G2: Олім піади | H2: Поза аудит. зах. | I2: Пропуск занять | K2: Пропуск вих. год. | M2: К-сть двійок | O2: Правопоруш | P2: Відмінник
A3: 1 | B3: Король Олена Ігорівна | C3: 59 | D3: =LOOKUP(C3,{0,50,55,60,65,70,75,80,85,90,95,101},{0,10,20,30,40,50,60,70,80,90,100}) -> 20 | E3: 6.9 | F3: =LOOKUP(E3,{4,6,8,10},{25,50,75,100}) -> 50 | H3: 140 | I3: 0 | J3: =LOOKUP(I3,{0,1,50,100,150,200,250,300,350,400,450},{0,-10,-20,-30,-40,-50,-60,-70,-80,-90,-100}) -> 0 | K3: 0 | L3: =LOOKUP(K3,{0,1,15,30,45,60,75,90,105,120,135},{0,-10,-20,-30,-40,-50,-60,-70,-80,-90,-100}) -> 0 | M3: 0 | N3: =LOOKUP(M3,{0,1,15,30,45,60,75,90,105,120,135},{0,-10,-20,-30,-40,-50,-60,-70,-80,-90,-100}) -> 0 | Q3: =D3+F3+G3+H3+J3+L3+N3+O3+P3 -> 210
A4: 2 | B4: Андрощук Роксана Віталіївна | C4: 70 | D4: =LOOKUP(C4,{0,50,55,60,65,70,75,80,85,90,95,101},{0,10,20,30,40,50,60,70,80,90,100}) -> 50 | E4: 6.7 | F4: =LOOKUP(E4,{4,6,8,10},{25,50,75,100}) -> 50 | H4: 110 | I4: 0 | J4: =LOOKUP(I4,{0,1,50,100,150,200,250,300,350,400,450},{0,-10,-20,-30,-40,-50,-60,-70,-80,-90,-100}) -> 0 | K4: 0 | L4: =LOOKUP(K4,{0,1,15,30,45,60,75,90,105,120,135},{0,-10,-20,-30,-40,-50,-60,-70,-80,-90,-100}) -> 0 | M4: 0 | N4: =LOOKUP(M4,{0,1,15,30,45,60,75,90,105,120,135},{0,-10,-20,-30,-40,-50,-60,-70,-80,-90,-100}) -> 0 | Q4: =D4+F4+G4+H4+J4+L4+N4+O4+P4 -> 210
A5: 3 | B5: Прищепа Єлізавета Вікторівна | C5: 100 | D5: =LOOKUP(C5,{0,50,55,60,65,70,75,80,85,90,95,101},{0,10,20,30,40,50,60,70,80,90,100}) -> 100 | E5: 9.4 | F5: =LOOKUP(E5,{4,6,8,10},{25,50,75,100}) -> 75 | H5: 10 | I5: 0 | J5: =LOOKUP(I5,{0,1,50,100,150,200,250,300,350,400,450},{0,-10,-20,-30,-40,-50,-60,-70,-80,-90,-100}) -> 0 | K5: 0 | L5: =LOOKUP(K5,{0,1,15,30,45,60,75,90,105,120,135},{0,-10,-20,-30,-40,-50,-60,-70,-80,-90,-100}) -> 0 | M5: 0 | N5: =LOOKUP(M5,{0,1,15,30,45,60,75,90,105,120,135},{0,-10,-20,-30,-40,-50,-60,-70,-80,-90,-100}) -> 0 | Q5: =D5+F5+G5+H5+J5+L5+N5+O5+P5 -> 185
A6: 4 | B6: Лютик Лілія Вікторівна | C6: 100 | D6: =LOOKUP(C6,{0,50,55,60,65,70,75,80,85,90,95,101},{0,10,20,30,40,50,60,70,80,90,100}) -> 100 | E6: 9 | F6: =LOOKUP(E6,{4,6,8,10},{25,50,75,100}) -> 75 | H6: 10 | I6: 0 | J6: =LOOKUP(I6,{0,1,50,100,150,200,250,300,350,400,450},{0,-10,-20,-30,-40,-50,-60,-70,-80,-90,-100}) -> 0 | K6: 0 | L6: =LOOKUP(K6,{0,1,15,30,45,60,75,90,105,120,135},{0,-10,-20,-30,-40,-50,-60,-70,-80,-90,-100}) -> 0 | M6: 0 | N6: =LOOKUP(M6,{0,1,15,30,45,60,75,90,105,120,135},{0,-10,-20,-30,-40,-50,-60,-70,-80,-90,-100}) -> 0 | Q6: =D6+F6+G6+H6+J6+L6+N6+O6+P6 -> 185
A7: 5 | B7: Півень Аліна Миколаївна | C7: 100 | D7: =LOOKUP(C7,{0,50,55,60,65,70,75,80,85,90,95,101},{0,10,20,30,40,50,60,70,80,90,100}) -> 100 | E7: 8.5 | F7: =LOOKUP(E7,{4,6,8,10},{25,50,75,100}) -> 75 | H7: 20 | I7: 0 | J7: =LOOKUP(I7,{0,1,50,100,150,200,250,300,350,400,450},{0,-10,-20,-30,-40,-50,-60,-70,-80,-90,-100}) -> 0 | K7: 0 | L7: =LOOKUP(K7,{0,1,15,30,45,60,75,90,105,120,135},{0,-10,-20,-30,-40,-50,-60,-70,-80,-90,-100}) -> 0 | M7: 1 | N7: =LOOKUP(M7,{0,1,15,30,45,60,75,90,105,120,135},{0,-10,-20,-30,-40,-50,-60,-70,-80,-90,-100}) -> -10 | Q7: =D7+F7+G7+H7+J7+L7+N7+O7+P7 -> 185
A8: 6 | B8: Свінціцька Олена Ігорівна | C8: 91 | D8: =LOOKUP(C8,{0,50,55,60,65,70,75,80,85,90,95,101},{0,10,20,30,40,50,60,70,80,90,100}) -> 90 | E8: 8.8 | F8: =LOOKUP(E8,{4,6,8,10},{25,50,75,100}) -> 75 | I8: 0 | J8: =LOOKUP(I8,{0,1,50,100,150,200,250,300,350,400,450},{0,-10,-20,-30,-40,-50,-60,-70,-80,-90,-100}) -> 0 | K8: 0 | L8: =LOOKUP(K8,{0,1,15,30,45,60,75,90,105,120,135},{0,-10,-20,-30,-40,-50,-60,-70,-80,-90,-100}) -> 0 | M8: 0 | N8: =LOOKUP(M8,{0,1,15,30,45,60,75,90,105,120,135},{0,-10,-20,-30,-40,-50,-60,-70,-80,-90,-100}) -> 0 | Q8: =D8+F8+G8+H8+J8+L8+N8+O8+P8 -> 165
A9: 7 | B9: Нечипорук Сабріна Олександрівна | C9: 76 | D9: =LOOKUP(C9,{0,50,55,60,65,70,75,80,85,90,95,101},{0,10,20,30,40,50,60,70,80,90,100}) -> 60 | E9: 72 | F9: =LOOKUP(E9,{4,6,8,10},{25,50,75,100}) -> 100 | I9: 0 | J9: =LOOKUP(I9,{0,1,50,100,150,200,250,300,350,400,450},{0,-10,-20,-30,-40,-50,-60,-70,-80,-90,-100}) -> 0 | K9: 0 | L9: =LOOKUP(K9,{0,1,15,30,45,60,75,90,105,120,135},{0,-10,-20,-30,-40,-50,-60,-70,-80,-90,-100}) -> 0 | M9: 0 | N9: =LOOKUP(M9,{0,1,15,30,45,60,75,90,105,120,135},{0,-10,-20,-30,-40,-50,-60,-70,-80,-90,-100}) -> 0 | Q9: =D9+F9+G9+H9+J9+L9+N9+O9+P9 -> 160
A10: 8 | B10: Дмітрієва Анастасія Вікторівна | C10: 81 | D10: =LOOKUP(C10,{0,50,55,60,65,70,75,80,85,90,95,101},{0,10,20,30,40,50,60,70,80,90,100}) -> 70 | E10: 8.5 | F10: =LOOKUP(E10,{4,6,8,10},{25,50,75,100}) -> 75 | H10: 10 | I10: 0 | J10: =LOOKUP(I10,{0,1,50,100,150,200,250,300,350,400,450},{0,-10,-20,-30,-40,-50,-60,-70,-80,-90,-100}) -> 0 | K10: 0 | L10: =LOOKUP(K10,{0,1,15,30,45,60,75,90,105,120,135},{0,-10,-20,-30,-40,-50,-60,-70,-80,-90,-100}) -> 0 | M10: 0 | N10: =LOOKUP(M10,{0,1,15,30,45,60,75,90,105,120,135},{0,-10,-20,-30,-40,-50,-60,-70,-80,-90,-100}) -> 0 | Q10: =D10+F10+G10+H10+J10+L10+N10+O10+P10 -> 155
A11: 9 | B11: Колесникова Олена Юріївна | C11: 76 | D11: =LOOKUP(C11,{0,50,55,60,65,70,75,80,85,90,95,101},{0,10,20,30,40,50,60,70,80,90,100}) -> 60 | E11: 8.9 | F11: =LOOKUP(E11,{4,6,8,10},{25,50,75,100}) -> 75 | I11: 0 | J11: =LOOKUP(I11,{0,1,50,100,150,200,250,300,350,400,450},{0,-10,-20,-30,-40,-50,-60,-70,-80,-90,-100}) -> 0 | K11: 0 | L11: =LOOKUP(K11,{0,1,15,30,45,60,75,90,105,120,135},{0,-10,-20,-30,-40,-50,-60,-70,-80,-90,-100}) -> 0 | M11: 0 | N11: =LOOKUP(M11,{0,1,15,30,45,60,75,90,105,120,135},{0,-10,-20,-30,-40,-50,-60,-70,-80,-90,-100}) -> 0 | Q11: =D11+F11+G11+H11+J11+L11+N11+O11+P11 -> 135
A12: 10 | B12: Герасимчук Анастасія Вікторівна | C12: 80.4 | D12: =LOOKUP(C12,{0,50,55,60,65,70,75,80,85,90,95,101},{0,10,20,30,40,50,60,70,80,90,100}) -> 70 | E12: 7.6 | F12: =LOOKUP(E12,{4,6,8,10},{25,50,75,100}) -> 50 | H12: 10 | I12: 0 | J12: =LOOKUP(I12,{0,1,50,100,150,200,250,300,350,400,450},{0,-10,-20,-30,-40,-50,-60,-70,-80,-90,-100}) -> 0 | K12: 0 | L12: =LOOKUP(K12,{0,1,15,30,45,60,75,90,105,120,135},{0,-10,-20,-30,-40,-50,-60,-70,-80,-90,-100}) -> 0 | M12: 0 | N12: =LOOKUP(M12,{0,1,15,30,45,60,75,90,105,120,135},{0,-10,-20,-30,-40,-50,-60,-70,-80,-90,-100}) -> 0 | Q12: =D12+F12+G12+H12+J12+L12+N12+O12+P12 -> 130
A13: 11 | B13: Руденко Надія Вікторівна | C13: 85 | D13: =LOOKUP(C13,{0,50,55,60,65,70,75,80,85,90,95,101},{0,10,20,30,40,50,60,70,80,90,100}) -> 80 | E13: 7.4 | F13: =LOOKUP(E13,{4,6,8,10},{25,50,75,100}) -> 50 | I13: 0 | J13: =LOOKUP(I13,{0,1,50,100,150,200,250,300,350,400,450},{0,-10,-20,-30,-40,-50,-60,-70,-80,-90,-100}) -> 0 | K13: 0 | L13: =LOOKUP(K13,{0,1,15,30,45,60,75,90,105,120,135},{0,-10,-20,-30,-40,-50,-60,-70,-80,-90,-100}) -> 0 | M13: 0 | N13: =LOOKUP(M13,{0,1,15,30,45,60,75,90,105,120,135},{0,-10,-20,-30,-40,-50,-60,-70,-80,-90,-100}) -> 0 | Q13: =D13+F13+G13+H13+J13+L13+N13+O13+P13 -> 130
A14: 12 | B14: Ростобая Саломе Імедівна | C14: 82 | D14: =LOOKUP(C14,{0,50,55,60,65,70,75,80,85,90,95,101},{0,10,20,30,40,50,60,70,80,90,100}) -> 70 | E14: 7.3 | F14: =LOOKUP(E14,{4,6,8,10},{25,50,75,100}) -> 50 | I14: 0 | J14: =LOOKUP(I14,{0,1,50,100,150,200,250,300,350,400,450},{0,-10,-20,-30,-40,-50,-60,-70,-80,-90,-100}) -> 0 | K14: 0 | L14: =LOOKUP(K14,{0,1,15,30,45,60,75,90,105,120,135},{0,-10,-20,-30,-40,-50,-60,-70,-80,-90,-100}) -> 0 | M14: 0 | N14: =LOOKUP(M14,{0,1,15,30,45,60,75,90,105,120,135},{0,-10,-20,-30,-40,-50,-60,-70,-80,-90,-100}) -> 0 | Q14: =D14+F14+G14+H14+J14+L14+N14+O14+P14 -> 120
A15: 13 | B15: Хоменко Анна Анатоліївна | C15: 73 | D15: =LOOKUP(C15,{0,50,55,60,65,70,75,80,85,90,95,101},{0,10,20,30,40,50,60,70,80,90,100}) -> 50 | E15: 7.5 | F15: =LOOKUP(E15,{4,6,8,10},{25,50,75,100}) -> 50 | I15: 0 | J15: =LOOKUP(I15,{0,1,50,100,150,200,250,300,350,400,450},{0,-10,-20,-30,-40,-50,-60,-70,-80,-90,-100}) -> 0 | K15: 0 | L15: =LOOKUP(K15,{0,1,15,30,45,60,75,90,105,120,135},{0,-10,-20,-30,-40,-50,-60,-70,-80,-90,-100}) -> 0 | M15: 0 | N15: =LOOKUP(M15,{0,1,15,30,45,60,75,90,105,120,135},{0,-10,-20,-30,-40,-50,-60,-70,-80,-90,-100}) -> 0 | Q15: =D15+F15+G15+H15+J15+L15+N15+O15+P15 -> 100
A16: 14 | B16: Хоменко Катерина Олегівна | C16: 53 | D16: =LOOKUP(C16,{0,50,55,60,65,70,75,80,85,90,95,101},{0,10,20,30,40,50,60,70,80,90,100}) -> 10 | E16: 6.5 | F16: =LOOKUP(E16,{4,6,8,10},{25,50,75,100}) -> 50 | I16: 0 | J16: =LOOKUP(I16,{0,1,50,100,150,200,250,300,350,400,450},{0,-10,-20,-30,-40,-50,-60,-70,-80,-90,-100}) -> 0 | K16: 0 | L16: =LOOKUP(K16,{0,1,15,30,45,60,75,90,105,120,135},{0,-10,-20,-30,-40,-50,-60,-70,-80,-90,-100}) -> 0 | M16: 0 | N16: =LOOKUP(M16,{0,1,15,30,45,60,75,90,105,120,135},{0,-10,-20,-30,-40,-50,-60,-70,-80,-90,-100}) -> 0 | Q16: =D16+F16+G16+H16+J16+L16+N16+O16+P16 -> 60
A17: 15 | B17: Кваснюк Анна Леонідівна | C17: 50 | D17: =LOOKUP(C17,{0,50,55,60,65,70,75,80,85,90,95,101},{0,10,20,30,40,50,60,70,80,90,100}) -> 10 | E17: 6.8 | F17: =LOOKUP(E17,{4,6,8,10},{25,50,75,100}) -> 50 | I17: 0 | J17: =LOOKUP(I17,{0,1,50,100,150,200,250,300,350,400,450},{0,-10,-20,-30,-40,-50,-60,-70,-80,-90,-100}) -> 0 | K17: 0 | L17: =LOOKUP(K17,{0,1,15,30,45,60,75,90,105,120,135},{0,-10,-20,-30,-40,-50,-60,-70,-80,-90,-100}) -> 0 | M17: 2 | N17: =LOOKUP(M17,{0,1,15,30,45,60,75,90,105,120,135},{0,-10,-20,-30,-40,-50,-60,-70,-80,-90,-100}) -> -10 | Q17: =D17+F17+G17+H17+J17+L17+N17+O17+P17 -> 50
A18: 16 | B18: Олійник Анастасія Василівна | C18: 47 | D18: =LOOKUP(C18,{0,50,55,60,65,70,75,80,85,90,95,101},{0,10,20,30,40,50,60,70,80,90,100}) -> 0 | E18: 6.5 | F18: =LOOKUP(E18,{4,6,8,10},{25,50,75,100}) -> 50 | I18: 2 | J18: =LOOKUP(I18,{0,1,50,100,150,200,250,300,350,400,450},{0,-10,-20,-30,-40,-50,-60,-70,-80,-90,-100}) -> -10 | K18: 0 | L18: =LOOKUP(K18,{0,1,15,30,45,60,75,90,105,120,135},{0,-10,-20,-30,-40,-50,-60,-70,-80,-90,-100}) -> 0 | M18: 4 | N18: =LOOKUP(M18,{0,1,15,30,45,60,75,90,105,120,135},{0,-10,-20,-30,-40,-50,-60,-70,-80,-90,-100}) -> -10 | Q18: =D18+F18+G18+H18+J18+L18+N18+O18+P18 -> 30
A19: 17 | B19: Шалата Ірина Андріївна | C19: 41.4 | D19: =LOOKUP(C19,{0,50,55,60,65,70,75,80,85,90,95,101},{0,10,20,30,40,50,60,70,80,90,100}) -> 0 | E19: 6.2 | F19: =LOOKUP(E19,{4,6,8,10},{25,50,75,100}) -> 50 | I19: 6 | J19: =LOOKUP(I19,{0,1,50,100,150,200,250,300,350,400,450},{0,-10,-20,-30,-40,-50,-60,-70,-80,-90,-100}) -> -10 | K19: 2 | L19: =LOOKUP(K19,{0,1,15,30,45,60,75,90,105,120,135},{0,-10,-20,-30,-40,-50,-60,-70,-80,-90,-100}) -> -10 | M19: 3 | N19: =LOOKUP(M19,{0,1,15,30,45,60,75,90,105,120,135},{0,-10,-20,-30,-40,-50,-60,-70,-80,-90,-100}) -> -10 | Q19: =D19+F19+G19+H19+J19+L19+N19+O19+P19 -> 20
A20: 18 | B20: Демчик Валентина Романівна | C20: 41 | D20: =LOOKUP(C20,{0,50,55,60,65,70,75,80,85,90,95,101},{0,10,20,30,40,50,60,70,80,90,100}) -> 0 | E20: 6 | F20: =LOOKUP(E20,{4,6,8,10},{25,50,75,100}) -> 50 | I20: 3 | J20: =LOOKUP(I20,{0,1,50,100,150,200,250,300,350,400,450},{0,-10,-20,-30,-40,-50,-60,-70,-80,-90,-100}) -> -10 | K20: 2 | L20: =LOOKUP(K20,{0,1,15,30,45,60,75,90,105,120,135},{0,-10,-20,-30,-40,-50,-60,-70,-80,-90,-100}) -> -10 | M20: 4 | N20: =LOOKUP(M20,{0,1,15,30,45,60,75,90,105,120,135},{0,-10,-20,-30,-40,-50,-60,-70,-80,-90,-100}) -> -10 | Q20: =D20+F20+G20+H20+J20+L20+N20+O20+P20 -> 20
B21: Куратор
B22: Дані по групі
B23: Результат | Q23: =(SUM(Q3:Q20)+H22+G21+H21)/18 -> 125
B25: Куратор групи
B26: Кальчу Світлана Леонідівна | C26: 12 | D26: 3 | E26: 19 | L26: ___________

Sheet Лист2

Sheet Лист3
